Cogmind - Beta 14 @@@ ROGUE MODE // 2024.12.25 @ 00:02:52 Player: yua241 Result: Core destroyed Performance ------------- Evolutions (3) 1500 Regions Visited (6) 1200 Robots Destroyed (44) 220 Value Destroyed (1342) 1342 Prototype IDs (2) 40 Alien Tech Used (0) 0 Bonus (649) 649 TOTAL SCORE: 4951 Bonus ------- Follower Combat Kills 149 Entered DSFs 500 Cogmind --------- Core Integrity 0/700 Matter 249/300 Energy 267/500 System Corruption 0% Temperature Critical (798) Movement Walking (200) Ox1 Location -7/DSF Parts ------- > --- POWER (2) -------- (None) > --- PROPULSION (4) --- Titanium Leg > --- UTILITY (3) ------ Small Storage Unit Compact Battery Compact Battery > --- WEAPON (4) ------- Gauss Rifle Gauss Rifle Gauss Rifle Gauss Rifle > --- INVENTORY (8) ---- Improved Cooling System Minigun Minigun Minigun Assault Cannon Peak State ------------ > --- POWER ------------ Light Ion Engine Improved Ion Engine > --- PROPULSION ------- Aluminum Leg Aluminum Leg Aluminum Leg Titanium Leg > --- UTILITY ---------- Small Storage Unit Compact Battery Compact Battery > --- WEAPON ----------- Lightning Gun Pulse Rifle Pulse Rifle Pulse Rifle > --- INVENTORY -------- Lightning Gun Lightning Gun [Rating: 29] Favorites ----------- Power Light Nuclear Core Engine Light Ion Engine Power Core Light Nuclear Core Propulsion Aluminum Leg Leg Aluminum Leg Wheel Compact Wheel Utility Small Storage Unit Device Terrain Scanner Storage Small Storage Unit Weapon Pulse Rifle Energy Gun Pulse Rifle Ballistic Gun Light Assault Rifle Launcher Rocket Launcher Special Weapon Mining Laser Build | -11 -10 -10 -9 -8 -7 -7 ------- Run | Yrd Mat Min Mat Mat Fac DSF Slots Evolved 6 | . . . 2 2 2 . Power 1 | . . . . . 1 . Propulsion 2 | . . . 1 . 1 . Utility 1 | . . . 1 . . . Weapon 2 | . . . . 2 . . Parts Attached 56 | 6 7 . 18 11 1 13 Power 8 | 1 1 . 4 1 . 1 Engine 6 | 1 1 . 2 1 . 1 Core 2 | . . . 2 . . . Reactor . | . . . . . . . Propulsion 16 | 2 2 . 5 4 . 3 Treads . | . . . . . . . Leg 13 | 2 . . 5 3 . 3 Wheel 3 | . 2 . . 1 . . Hover . | . . . . . . . Flight . | . . . . . . . Utility 11 | 1 2 . 3 3 . 2 Device 5 | . 2 . 2 1 . . Storage 6 | 1 . . 1 2 . 2 Processor . | . . . . . . . Hackware . | . . . . . . . Protection . | . . . . . . . Artifact . | . . . . . . . Weapon 21 | 2 2 . 6 3 1 7 Energy Gun 9 | 1 . . 1 3 1 3 Energy Cannon . | . . . . . . . Ballistic Gun 8 | 1 2 . 1 . . 4 Ballistic Cannon . | . . . . . . . Launcher 2 | . . . 2 . . . Special Weapon 2 | . . . 2 . . . Impact Weapon . | . . . . . . . Slashing Weapon . | . . . . . . . Piercing Weapon . | . . . . . . . Special Melee Weapon . | . . . . . . . Unidentified Prototypes . | . . . . . . . Parts Lost 34 | . 6 . 7 5 . 16 Power 4 | . 1 . 1 . . 2 Propulsion 12 | . 2 . 3 2 . 5 Utility 6 | . 1 . 1 2 . 2 Weapon 12 | . 2 . 2 1 . 7 Highest Loss Streak 9 | . 4 . 4 5 . 9 To Critical Strikes . | . . . . . . . Average Slot Usage (%) 73 | . 75 85 72 73 . 67 Engine 5 | . 13 14 . 2 . 2 Core 3 | . . . 9 6 . . Leg 14 | . 13 . 14 19 . 16 Wheel 2 | . 3 14 1 1 . . Device 9 | . 6 14 17 10 . 1 Storage 13 | . 14 14 11 11 . 19 Energy Gun 10 | . 6 . 1 19 . 20 Ballistic Gun 11 | . 17 28 13 . . 6 Launcher 1 | . . . 3 2 . . Peak Build Rating 29 | 6 7 7 14 22 25 29 Average Rating 12 | 3 5 6 9 17 25 24 On Entrance 10 | . 6 6 7 9 22 25 Naked Turns . | . . . . . . . Heaviest Build 28 | 14 15 11 17 23 23 28 Greatest Support 45 | 20 20 16 30 37 37 45 Greatest Overweight (x) 4 | 4 3 . 4 1 . 1 Average Overweight (x) . | . . . . . . . Largest Inventory Capacity 20 | 8 8 8 20 8 8 8 Average Capacity 7 | 7 8 8 8 8 8 8 Most Carried 8 | 5 7 8 8 8 7 8 Average Carried 5 | 1 3 7 6 7 7 4 Final Capacity 8 | 8 8 8 8 8 8 8 Final Carried 8 | 1 7 8 6 8 7 5 Class Distribution -------------------- 60% | Mutant 17% | Skirmisher 12% | Gunner 9% | Scavenger-Mutant Dominant Class ---------------- Mutant | -10/Materials Mutant | -10/Mines Mutant | -9/Materials Skirmisher | -8/Materials Skirmisher | -7/Factory Gunner | -7/DSF Resources | -11 -10 -10 -9 -8 -7 -7 ----------- Run | Yrd Mat Min Mat Mat Fac DSF Matter Collected 1189 | 184 263 13 379 224 . 126 Remotely . | . . . . . . . Salvage Created 1601 | . 363 13 385 397 . 443 Parts 102 | . 21 . 27 18 . 36 Haulers Intercepted 1 | . . . . 1 . . Recyclers Shooed 2 | . 1 . 1 . . . Parts Field Recycled . | . . . . . . . Retrieved Matter . | . . . . . . . Parts Self-Destructed . | . . . . . . . Prevented . | . . . . . . . Kills | -11 -10 -10 -9 -8 -7 -7 ------- Run | Yrd Mat Min Mat Mat Fac DSF Combat Hostiles Destroyed 30 | . 7 1 7 7 . 8 Guns 24 | . 7 1 2 6 . 8 AOE 6 | . . . 5 1 . . Classes Destroyed 13 | . 3 1 4 2 . 3 Worker 3 | . . . 2 1 . . Builder 6 | . . . 4 2 . . Hauler 1 | . . . . 1 . . Recycler 4 | . 2 . 2 . . . Watcher 1 | . . . . 1 . . Swarmer 3 | . 3 . . . . . Grunt 14 | . 4 . 4 4 . 2 Duelist 1 | . . . 1 . . . Sentry 5 | . . . 2 3 . . Specialist 3 | . . . . . . 3 Hunter 2 | . . . . . . 2 Heavy 1 | . . . . . . 1 Assembled 1 | . . 1 . . . . Best Kill Streak 5 | . 3 1 4 5 . 2 Combat Bots Only 4 | . 3 1 3 4 . 2 Max Kills in Single Turn 2 | . 1 1 2 2 . 1 Gunslinging . | . . . . . . . Exploded 2 | . . . 2 1 . . Melee . | . . . . . . . Uniques/NPCs Destroyed . | . . . . . . . Combat | -11 -10 -10 -9 -8 -7 -7 -------- Run | Yrd Mat Min Mat Mat Fac DSF Hostile Shots Fired 286 | . 99 8 53 45 . 81 Missed 82 | . 25 . 15 17 . 25 Damage Taken 4011 | . 769 99 909 427 . 1807 Core 1354 | . 205 22 264 108 . 755 Absorbed by Shields 68 | . . . 68 . . . Core Remaining (%) 55 | 100 . 9 34 80 . . Volleys Fired 171 | . 77 7 41 22 . 24 Largest 4 | . 2 2 2 3 . 4 Hottest 244 | . 70 40 123 189 . 244 Shots Fired 293 | . 100 14 58 46 . 75 Gun 267 | . 100 14 38 40 . 75 Cannon . | . . . . . . . Launcher 22 | . . . 16 6 . . Special 4 | . . . 4 . . . Kinetic 128 | . 79 14 31 . . 4 Thermal 113 | . 21 . 11 40 . 41 Explosive 22 | . . . 16 6 . . Electromagnetic 30 | . . . . . . 30 Robot Hit Streak 14 | . 8 4 9 10 . 14 Robot Miss Streak 4 | . 3 4 4 2 . 4 Penetration Max . | . . . . . . . Secondary Targets 5 | . 1 . . 2 . 2 Max Gunslinging Chain 1 | . 1 . . 1 . 1 Shots Hit Robots 194 | . 66 7 38 32 . 51 Core Hits 92 | . 25 3 24 20 . 20 Critical Kills . | . . . . . . . Critical Parts Destroyed 1 | . 1 . . . . . Critical Strikes 2 | . 2 . . . . . Burn 1 | . 1 . . . . . Destroy 1 | . 1 . . . . . Melee Attacks . | . . . . . . . Impact . | . . . . . . . Slashing . | . . . . . . . Piercing . | . . . . . . . Sneak Attacks . | . . . . . . . Combat Hostiles . | . . . . . . . Follow-up Attacks . | . . . . . . . Damage Inflicted 3759 | . 649 61 1271 849 . 929 Guns 2451 | . 647 61 356 458 . 929 Cannons . | . . . . . . . Explosions 1300 | . . . 909 391 . . Melee . | . . . . . . . Ramming 8 | . 2 . 6 . . . Kinetic 898 | . 474 61 299 . . 64 Thermal 1133 | . 173 . 57 458 . 445 Explosive 1300 | . . . 909 391 . . Electromagnetic 420 | . . . . . . 420 Impact . | . . . . . . . Slashing . | . . . . . . . Piercing . | . . . . . . . Highest Corruption . | . . . . . . . Average Corruption . | . . . . . . . Corruption Purged . | . . . . . . . Corruption Blocked . | . . . . . . . Overload Shots . | . . . . . . . Overflow Damage 95 | . . . 92 3 . . Projectiles . | . . . . . . . Explosions 95 | . . . 92 3 . . Melee . | . . . . . . . Knockbacks 1 | . . . 1 . . . Impact 1 | . . . 1 . . . Kinetic . | . . . . . . . Secondary . | . . . . . . . Self-Inflicted Damage 272 | . . . 272 . . . Shots 5 | . . . 5 . . . Rammed . | . . . . . . . Targets Rammed 4 | . 2 . 1 1 . . Kicked 4 | . 2 . 1 1 . . Crushed . | . . . . . . . Highest Temperature 798 | . 413 . 41 372 . 798 Average Temperature 149 | . 189 . 12 130 . 181 Received Heat Transfer 899 | . 339 . 119 207 . 234 Effects 14 | . 2 . . . . 12 Shutdowns 2 | . 2 . . . . . Energy Bleed 3 | . . . . . . 3 Interference 3 | . . . . . . 3 Matter Decay 1 | . . . . . . 1 Short Circuit 1 | . . . . . . 1 Damage (core) 4 | . . . . . . 4 Siege Activations . | . . . . . . . Robots Corrupted . | . . . . . . . Combat Hostiles . | . . . . . . . Parts Fried 2 | . . . . . . 2 Impact Corruptions . | . . . . . . . Robots Melted . | . . . . . . . Combat Hostiles . | . . . . . . . Parts Melted 2 | . . . . 2 . . Heat Transferred 2678 | . 592 . 125 999 . 962 Parts Sabotaged . | . . . . . . . Parts Stolen . | . . . . . . . Parts Stripped . | . . . . . . . Power Chain Reactions . | . . . . . . . Alert | -11 -10 -10 -9 -8 -7 -7 ------- Run | Yrd Mat Min Mat Mat Fac DSF Peak Influence 321 | . 174 19 321 308 83 191 Initial 135 | . . 19 7 135 83 61 Average 125 | . 36 19 182 243 83 106 Maximum Alert Level 1 | . . . 1 1 . . Low Security (%) 74 | 100 100 100 51 30 100 100 Level 1 25 | . . . 48 69 . . Level 2 . | . . . . . . . Level 3 . | . . . . . . . Level 4 . | . . . . . . . Level 5 . | . . . . . . . High Security . | . . . . . . . Max Security . | . . . . . . . Sterilizations 1 | . . . . . . 1 Squads Dispatched 9 | . 3 . 3 1 . 2 Investigation . | . . . . . . . Extermination . | . . . . . . . Reinforcement 9 | . 3 . 3 1 . 2 Assault . | . . . . . . . Garrison . | . . . . . . . Intercept . | . . . . . . . Searches Triggered . | . . . . . . . Construction Impeded 2 | . . . 1 1 . . Haulers Reinforced . | . . . . . . . Active Scanning Responses . | . . . . . . . Cargo Convoy Interrupts . | . . . . . . . Stealth | -11 -10 -10 -9 -8 -7 -7 --------- Run | Yrd Mat Min Mat Mat Fac DSF Distress Signals 4 | . 3 . 1 . . . Communications Jammed . | . . . . . . . Distress Signals . | . . . . . . . Times Spotted 63 | . 19 1 16 9 . 18 Peak Tracking Total 5 | . 5 1 3 4 . 4 Tactical Retreats 8 | . 3 . 2 . . 3 Traps | -11 -10 -10 -9 -8 -7 -7 ------- Run | Yrd Mat Min Mat Mat Fac DSF Traps Triggered 1 | . 1 . . . . . Indirectly . | . . . . . . . Trap Hack Attempts . | . . . . . . . Triggered . | . . . . . . . Disarmed . | . . . . . . . Reprogrammed . | . . . . . . . Reused . | . . . . . . . Traps Extracted . | . . . . . . . Installed . | . . . . . . . Triggered . | . . . . . . . Machines | -11 -10 -10 -9 -8 -7 -7 ---------- Run | Yrd Mat Min Mat Mat Fac DSF Machines Disabled 4 | . . . 2 2 . . Max in Single Turn 2 | . . . 2 1 . . Machines Repaired . | . . . . . . . Machines Dismantled . | . . . . . . . Machines Sabotaged . | . . . . . . . Overloaded Fab Kills . | . . . . . . . Hacking | -11 -10 -10 -9 -8 -7 -7 --------- Run | Yrd Mat Min Mat Mat Fac DSF Machines Accessed 7 | . 3 . 3 . 1 . Terminals 7 | . 3 . 3 . 1 . Fabricators . | . . . . . . . Repair Stations . | . . . . . . . Recycling Units . | . . . . . . . Scanalyzers . | . . . . . . . Garrison Access . | . . . . . . . Total Hacks 15 | . 7 . 6 . 2 . Successful 10 | . 5 . 4 . 1 . Failed 5 | . 2 . 2 . 1 . Catastrophic 2 | . 1 . 1 . . . Database Lockouts . | . . . . . . . Manual 1 | . 1 . . . . . Terminals 15 | . 7 . 6 . 2 . Fabricators . | . . . . . . . Repair Stations . | . . . . . . . Recycling Units . | . . . . . . . Scanalyzers . | . . . . . . . Garrison Access . | . . . . . . . Terminal Hacks 10 | . 5 . 4 . 1 . Prototype ID Bank 1 | . 1 . . . . . Open DSF 1 | . . . . . 1 . Terminal Index 1 | . . . 1 . . . Alert Level 2 | . 2 . . . . . Locate Traps 1 | . 1 . . . . . Security Status 1 | . 1 . . . . . Patrol Status 1 | . . . 1 . . . Zone Layout 2 | . . . 2 . . . Fabricator Hacks . | . . . . . . . Repair Station Hacks . | . . . . . . . Recycling Unit Hacks . | . . . . . . . Scanalyzer . | . . . . . . . Garrison Access Hacks . | . . . . . . . Unauthorized Hacks . | . . . . . . . Terminals . | . . . . . . . Fabricators . | . . . . . . . Repair Stations . | . . . . . . . Recycling Units . | . . . . . . . Scanalyzers . | . . . . . . . Garrison Access . | . . . . . . . Data Cores Recovered . | . . . . . . . Used . | . . . . . . . Hacking Detections 5 | . 2 . 2 . 1 . Full Trace Events . | . . . . . . . Feedback Events . | . . . . . . . Feedback Blocked . | . . . . . . . Robot Schematics Acquired . | . . . . . . . Robots Built . | . . . . . . . Authchips . | . . . . . . . Time . | . . . . . . . Total Robot Build Rating . | . . . . . . . Part Schematics Acquired . | . . . . . . . Parts Built . | . . . . . . . Authchips . | . . . . . . . Time . | . . . . . . . Total Part Build Rating . | . . . . . . . Parts Repaired . | . . . . . . . Time . | . . . . . . . Parts Recycled . | . . . . . . . Recycled Matter . | . . . . . . . Retrieved Matter . | . . . . . . . Retrieved Components . | . . . . . . . Parts Scanalyzed . | . . . . . . . Part Schematics Acquired . | . . . . . . . Parts Damaged . | . . . . . . . Bothacking | -11 -10 -10 -9 -8 -7 -7 ------------ Run | Yrd Mat Min Mat Mat Fac DSF Used RIF Installer . | . . . . . . . Robots Hacked . | . . . . . . . Non-combat . | . . . . . . . Combat . | . . . . . . . Robot Hacks Applied . | . . . . . . . Relay Couplers Released . | . . . . . . . Fabnet Peak Effective % . | . . . . . . . Robots Rewired . | . . . . . . . Allies Hacked . | . . . . . . . Hacks Repelled . | . . . . . . . Allies | -11 -10 -10 -9 -8 -7 -7 -------- Run | Yrd Mat Min Mat Mat Fac DSF Total Allies 4 | . . 4 . . . . Largest Group 4 | . . 4 4 . . . Highest-Rated Group 71 | . . 71 71 . . . Highest-Rated Ally 31 | . . 31 31 . . . Total Orders . | . . . . . . . Ally Attacks 35 | . . . 35 . . . Total Damage 422 | . . . 422 . . . Kills 5 | . . . 5 . . . Allies Corrupted . | . . . . . . . Allies Melted . | . . . . . . . Intel | -11 -10 -10 -9 -8 -7 -7 ------- Run | Yrd Mat Min Mat Mat Fac DSF Robot Analysis Total . | . . . . . . . Derelict Logs Recovered 1 | . . 1 . . . . Drone Launches . | . . . . . . . Drone Recoveries . | . . . . . . . Exploration | -11 -10 -10 -9 -8 -7 -7 ------------- Run | Yrd Mat Min Mat Mat Fac DSF Turns Passed 2560 | 62 610 215 661 493 4 515 Spaces Moved 1257 | 41 266 147 315 284 3 201 Core 75 | 21 35 . 19 . . . Treads . | . . . . . . . Legs 847 | 20 116 . 223 284 3 201 Wheels 335 | . 115 147 73 . . . Hover . | . . . . . . . Flight . | . . . . . . . Fastest Speed 50 | 50 100 100 100 123 123 123 Average Speed 131 | 118 120 100 151 128 123 141 Slowest Speed 250 | 250 200 100 250 190 123 200 Overloaded Moves . | . . . . . . . Propulsion Burnouts . | . . . . . . . Robots Hopped . | . . . . . . . Cave-ins Triggered . | . . . . . . . Exploration Rate (%) 32 | 4 40 40 22 19 . 67 Regions Visited 6 Branch Regions 1 Pre-discovered Areas 1 | . . 1 . . . . Known Exits Taken 1 | . . . . . 1 . Unknown Exits Taken 5 | 1 1 1 1 1 . . Scrap Searched . | . . . . . . . Spaces Dug 2 | . . . 2 . . . Terrain Destroyed 200 | . . . 163 37 . . Melee . | . . . . . . . Projectile 2 | . . . 2 . . . AOE 198 | . . . 161 37 . . Terrain Rammed . | . . . . . . . Walls Destroyed . | . . . . . . . Machines Disabled . | . . . . . . . Actions | -11 -10 -10 -9 -8 -7 -7 --------- Run | Yrd Mat Min Mat Mat Fac DSF Total 1935 | 55 465 206 447 376 3 383 Wait 349 | . 101 50 48 35 . 115 Move 1251 | 40 265 146 314 283 2 201 Hop . | . . . . . . . Pick Up 69 | 8 13 2 15 17 . 14 Fast Attach . | . . . . . . . Attach 54 | 6 7 . 16 11 1 13 Detach 4 | . . . 3 1 . . Swap 2 | . . . 2 . . . Drop 18 | 1 . 1 7 6 . 3 Fire 171 | . 77 7 41 22 . 24 Melee . | . . . . . . . Ram . | . . . . . . . Kick 4 | . 2 . 1 1 . . Crush . | . . . . . . . Escape Stasis . | . . . . . . . Rewire 13 | . . . . . . 13 Trap . | . . . . . . . Miscellaneous . | . . . . . . . Route ------- -11/Scrapyard -10/Materials -10/Mines -9/Materials -8/Materials -7/Factory -7/DSF History --------- Turn | Location | Event 10 | -11/Scrapyard | Discovered new exit (range 15) 63 | -11/Scrapyard | Entered Materials 302 | -10/Materials | Build established: Mutant 376 | -10/Materials | Lost 4 parts (1n1u2w) 397 | -10/Materials | Core integrity fell below 50% 581 | -10/Materials | Core integrity fell below 20% 657 | -10/Materials | Discovered new exit (range 9) 673 | -10/Materials | Entered Mines 674 | -10/Mines | Assembled infested the area 675 | -10/Mines | Met a Derelict bent on vengeance 676 | -10/Mines | Received a Mining Laser from a helpful Derelict 713 | -10/Mines | Received a Rocket Launcher from a helpful Derelict 781 | -10/Mines | Assisted by bots powering up and referring to "LRC-V3" 858 | -10/Mines | Learned location of Zion (-7) 863 | -10/Mines | Discovered new exit (range 12) 888 | -10/Mines | Entered Materials 888 | -9/Materials | Accompanied by 4 allies 888 | -9/Materials | Evolved 2 slots: Propulsion x1, Utility x1 1382 | -9/Materials | Core integrity fell below 50% 1412 | -9/Materials | Lost 4 parts (1p2n1w) 1502 | -9/Materials | Discovered new exit (range 16) 1549 | -9/Materials | Entered another Materials area 1549 | -8/Materials | Evolved 2 slots: Weapon x2 1731 | -8/Materials | Lost 5 parts (2n2u1w) 2030 | -8/Materials | Build established: Skirmisher 2039 | -8/Materials | Discovered new exit (range 3) 2042 | -8/Materials | Entered Factory 2042 | -7/Factory | Evolved 2 slots: Power x1, Propulsion x1 2046 | -7/Factory | Identified exit to DSF 2046 | -7/Factory | Entered DSF 2110 | -7/DSF | Additional patrols routed to DSF 2248 | -7/DSF | Lost 9 parts (2p3n1u3w) 2436 | -7/DSF | Sterilization system engaged 2456 | -7/DSF | Ambient heat levels rising (+10) 2457 | -7/DSF | Lost 7 parts (2n1u4w) 2471 | -7/DSF | Ambient heat levels rising (+10) 2486 | -7/DSF | Ambient heat levels rising (+10) 2501 | -7/DSF | Ambient heat levels rising (+10) 2516 | -7/DSF | Ambient heat levels rising (+10) 2531 | -7/DSF | Ambient heat levels rising (+10) 2546 | -7/DSF | Ambient heat levels rising (+10) 2556 | -7/DSF | Core integrity fell below 50% 2558 | -7/DSF | Core integrity fell below 20% 2561 | -7/DSF | Ambient heat levels rising (+10) 2562 | -7/DSF | Core destroyed Last Messages --------------- 02554_ G-47 Trooper overheating. 02554_ L-41 Fighter overheating. 02555_ Gauss Rifle broken. 02555_ Overheating: Short circuit. 02555_ G-47 Trooper heat damages Lgt. Nuclear Core. 02555_ A-02 Transporter heat damages core (-6). 02555_ G-47 Trooper overheating. 02555_ L-41 Fighter overheating. 02556_ Overheating: Core damaged (-105). 02556_ A-02 Transporter heat damages Lgt. Treads, Ion Engine, Med. Storage Unit. 02557_ Overheating: Core damaged (-98). 02557_ A-02 Transporter heat damages Lgt. Treads, Transport Network Coupler, Ion Engine, Med. Storage Unit. 02558_ Overheating: Core damaged (-140). 02560_ Overheating: Matter decay (-51). 02561_ ALERT: Ambient heat levels +10. 02562_ Overheating: Core damaged (-84). Map ----- +----------------------------------------------------+ | ??????????????????????????????????????????? | | ??????????????????????????????????????????? | | ??????????????????????????????????????????? | | ??????????????????????????????????????"???? | | ????????????????????????????????????##"##?? | | ????????????????????????????????###?#""""?? | | ?????????????????????????????????]]##""""?? | | ??????????????????????? ???????? ""? | | ?????????????????????? ????????? "?? | | ??????????????????????# #?????????# "?? | | ?????????????????????## ##????????## ##? | | ????????????????????? ||???????### ##? | | ?????????????????????? |????????#[[ #? | | ?????????????????????? |????????#[[ ]## | | ????????????????????### ###??????### ### | | ????????????????????#** !!#??????#[[ ## | | ????????????????????#** !!#??????#[ ^^ #? | | ?????????????????????** !!##?##### ## | | ??????#?????###?#####?# % ############ ### | | ??????#==???#!!!#!!!### ###!!!# ## ]]# | | ??????#== ##!!!#!!!##% =% ##!!!# ## ]]# | | ??????# ^ !]= [ [ *[[%! !!# | | ??????# ^ !%!*%!= =%!"! !!" | | ??????# !=!%*%=! % !"%"[ !# | | ????????????#!!!#!!!## =%*##!!!# #"%!!!" | | ????????????????#!@!### "###!!!# ## *!!# | | ????????????????####### #?##########! ""# | | ???????????????????##!! !!??????##== "# | | ????????????????????#!! !!#?????##== %## | | ???????????????????##!! !!#?????##== % ## | | ???????????????????#### ###?????#### ### | | ???????????????????## ???????## ## | | ???????????????????## ######## ## | | ???????????????????## ########## ### | | ???????????????????#### ###===#==###* ### | | ???????????????????#### ###===#==##%[ ""# | | ???????????????????## ! """ | | ???????????????????## ^^ ""# | | ???????????????????##!! #===# ##"""""# | | ???????????????????##!! #########"""""# | | ???????????????????###################"#### | | ???????????????????###########?????###"#### | | ????????????????????????????????????##""#?? | | ????????????????????????????????????#####?? | | ?????????????????????????????????????####?? | | ??????????????????????????????????????????? | | ??????????????????????????????????????????? | | ??????????????????????????????????????????? | | | | | +----------------------------------------------------+ Best States ------------- Heat Dissipation 34 Energy Generation 17 Energy Capacity 690 Matter Stores 300 Matter Capacity 450 Sight Range 16 Robot Scan Range 14 Terrain Scan Range 14 Terrain Scan Density 10 Evasion (%) 55 Item Schematics ----------------- None Robot Schematics ------------------ None Fabricated ------------ Nothing Alien Tech Used ----------------- None Achievements -------------- Close Call I Survived The Infestation Challenges ------------ None Game ------ Seed AluminumSystemProcessor Manual? 0 Play Time 00:27:41 Cumulative 3.4 hours Start 2024.12.24 @ 23:12:14 End 2024.12.25 @ 00:02:52 Sessions 1 Manual Loads 0 Difficulty Rogue Special Mode None Game No. 11 Rogue 11 Adventurer 0 Explorer 0 Win Type - Total 0 Types 0/0/0/0/0/0/0/0/0 Lore% 1 Gallery% 6 Achievement% 8 Wizard Run 0 Options --------- Layout 2 ASCII 0 Keyboard 1 Movement Vi Keybinds 0 Fullscreen 2 Font 24/Swanston Map View 50x44 Zoom Use 0% Tactical HUD 1 Map Filters NONE Filters NONE Steam 1 RUN: 0dec9e46-2605-4063-90fc-ed44c41d7977